{"text_format":"3","workbook":"xlsx","n_sheets":3,"sheets":["بيانات العميل المتوقع","المبيعات المتوقعة ","التوقعات المرجحة الشهرية"],"not_rendered":{"charts":1,"defined_names":10},"read":"whole","date_system":"1900"}

{"sheet":"بيانات العميل المتوقع","index":0,"n_rows":9,"n_cols":10,"rows_kept":9,"merged":[[3,1,3,8]]}
[null,"اسم الشركة"]
[null,"متعقب العملاء المتوقعين المفصل"]
[null,{"$f":"TODAY()","v":"2018-05-24"}]
[null,{"$f":"Company_Name","v":"اسم الشركة"},{"$nulls":7},"سري"]
[null,"اسم العميل المتوقع","جهة اتصال العميل المتوقع","مصدر \nالعميل المتوقع","منطقة \nالعميل المتوقع","نوع \nالعميل المتوقع","الفرصة المحتملة","فرصة\nالبيع","إغلاق\nالتوقعات","التوقع\nالمرجح"]
[null,"A. Datum Corporation",{"$nulls":3},"الاستراتيجية",{"v":300000,"d":"ر.س.‏ 300,000.00"},{"v":0.9,"d":"90%"},"يناير",{"$f":"IFERROR(IF(بيانات_العميل_المتوقع[فرصة\nالبيع]<>\"\",بيانات_العميل_المتوقع[فرصة\nالبيع]*بيانات_العميل_المتوقع[الفرصة المحتملة],\"\"),\"\")","v":{"v":270000,"d":"ر.س.‏ 270,000.00"}}]
[null,"Adventure Works",{"$nulls":3},"الاستراتيجية",{"v":200000,"d":"ر.س.‏ 200,000.00"},{"v":0.1,"d":"10%"},"فبراير",{"$f":"IFERROR(IF(بيانات_العميل_المتوقع[فرصة\nالبيع]<>\"\",بيانات_العميل_المتوقع[فرصة\nالبيع]*بيانات_العميل_المتوقع[الفرصة المحتملة],\"\"),\"\")","v":{"v":20000,"d":"ر.س.‏ 20,000.00"}}]
[null,"Alpine Ski House",{"$nulls":3},"التكتيكية",{"v":100000,"d":"ر.س.‏ 100,000.00"},{"v":0.2,"d":"20%"},"مارس",{"$f":"IFERROR(IF(بيانات_العميل_المتوقع[فرصة\nالبيع]<>\"\",بيانات_العميل_المتوقع[فرصة\nالبيع]*بيانات_العميل_المتوقع[الفرصة المحتملة],\"\"),\"\")","v":{"v":20000,"d":"ر.س.‏ 20,000.00"}}]
[null,"الإجمالي",{"$nulls":4},{"$f":"SUBTOTAL(109,بيانات_العميل_المتوقع[الفرصة المحتملة])","v":{"v":600000,"d":"ر.س.‏ 600,000.00"}},null,null,{"$f":"SUBTOTAL(109,بيانات_العميل_المتوقع[التوقع\nالمرجح])","v":{"v":310000,"d":"ر.س.‏ 310,000.00"}}]

{"sheet":"المبيعات المتوقعة ","index":1,"n_rows":21,"n_cols":14,"rows_kept":21,"merged":[[3,1,3,11],[3,12,3,13]]}
[null,{"$f":"Company_Name","v":"اسم الشركة"}]
[null,"المبيعات المتوقعة"]
[null,{"$f":"تاريخ_التعقب","v":"2018-05-24"}]
[null,{"$f":"Company_Name","v":"اسم الشركة"},{"$nulls":10},"سري"]
[null,"اسم العميل المتوقع","يناير \nالمرجح","فبراير \nالمرجح","مارس \nالمرجح","أبريل \nالمرجح","مايو \nالمرجح","يونيو \nالمرجح","يوليو\nالمرجح","أغسطس \nالمرجح","سبتمبر \nالمرجح","أكتوبر \nالمرجح","نوفمبر \nالمرجح","ديسمبر \nالمرجح"]
[null,{"$f":"IFERROR(IF(AND(بيانات_العميل_المتوقع[اسم العميل المتوقع] <> \"\", ROW(المبيعات_المتوقعة[اسم العميل المتوقع])<>الإدخال_الأخير),بيانات_العميل_المتوقع[اسم العميل المتوقع], \"\"),\"\")","v":"A. Datum Corporation"},{"$f":"IFERROR(IF(بيانات_العميل_المتوقع[إغلاق\nالتوقعات] <>\"\",IF(بيانات_العميل_المتوقع[إغلاق\nالتوقعات]= \"يناير\",بيانات_العميل_المتوقع[التوقع\nالمرجح],0),\"\"),\"\")","v":{"v":270000,"d":"ر.س.‏ 270,000"}},{"$f":"IFERROR(IF(بيانات_العميل_المتوقع[إغلاق\nالتوقعات] <>\"\",IF(بيانات_العميل_المتوقع[إغلاق\nالتوقعات] = \"فبراير\",بيانات_العميل_المتوقع[التوقع\nالمرجح],0),\"\"),\"\")","v":{"v":0,"d":"ر.س.‏ 0"}},{"$f":"IFERROR(IF(بيانات_العميل_المتوقع[إغلاق\nالتوقعات] <>\"\",IF(بيانات_العميل_المتوقع[إغلاق\nالتوقعات] = \"مارس\",بيانات_العميل_المتوقع[التوقع\nالمرجح],0),\"\"),\"\")","v":{"v":0,"d":"ر.س.‏ 0"}},{"$f":"IFERROR(IF(بيانات_العميل_المتوقع[إغلاق\nالتوقعات] <>\"\",IF(بيانات_العميل_المتوقع[إغلاق\nالتوقعات] = \"أبريل\",بيانات_العميل_المتوقع[التوقع\nالمرجح],0),\"\"),\"\")","v":{"v":0,"d":"ر.س.‏ 0"}},{"$f":"IFERROR(IF(بيانات_العميل_المتوقع[إغلاق\nالتوقعات] <>\"\",IF(بيانات_العميل_المتوقع[إغلاق\nالتوقعات] = \"مايو\",بيانات_العميل_المتوقع[التوقع\nالمرجح],0),\"\"),\"\")","v":{"v":0,"d":"ر.س.‏ 0"}},{"$f":"IFERROR(IF(بيانات_العميل_المتوقع[إغلاق\nالتوقعات] <>\"\",IF(بيانات_العميل_المتوقع[إغلاق\nالتوقعات] = \"يونيو\",بيانات_العميل_المتوقع[التوقع\nالمرجح],0),\"\"),\"\")","v":{"v":0,"d":"ر.س.‏ 0"}},{"$f":"IFERROR(IF(بيانات_العميل_المتوقع[إغلاق\nالتوقعات] <>\"\",IF(بيانات_العميل_المتوقع[إغلاق\nالتوقعات] = \"يوليو\",بيانات_العميل_المتوقع[التوقع\nالمرجح],0),\"\"),\"\")","v":{"v":0,"d":"ر.س.‏ 0"}},{"$f":"IFERROR(IF(بيانات_العميل_المتوقع[إغلاق\nالتوقعات] <>\"\",IF(بيانات_العميل_المتوقع[إغلاق\nالتوقعات] = \"أغسطس\",بيانات_العميل_المتوقع[التوقع\nالمرجح],0),\"\"),\"\")","v":{"v":0,"d":"ر.س.‏ 0"}},{"$f":"IFERROR(IF(بيانات_العميل_المتوقع[إغلاق\nالتوقعات] <>\"\",IF(بيانات_العميل_المتوقع[إغلاق\nالتوقعات] = \"سبتمبر\",بيانات_العميل_المتوقع[التوقع\nالمرجح],0),\"\"),\"\")","v":{"v":0,"d":"ر.س.‏ 0"}},{"$f":"IFERROR(IF(بيانات_العميل_المتوقع[إغلاق\nالتوقعات] <>\"\",IF(بيانات_العميل_المتوقع[إغلاق\nالتوقعات] = \"أكتوبر\",بيانات_العميل_المتوقع[التوقع\nالمرجح],0),\"\"),\"\")","v":{"v":0,"d":"ر.س.‏ 0"}},{"$f":"IFERROR(IF(بيانات_العميل_المتوقع[إغلاق\nالتوقعات] <>\"\",IF(بيانات_العميل_المتوقع[إغلاق\nالتوقعات] = \"نوفمبر\",بيانات_العميل_المتوقع[التوقع\nالمرجح],0),\"\"),\"\")","v":{"v":0,"d":"ر.س.‏ 0"}},{"$f":"IFERROR(IF(بيانات_العميل_المتوقع[إغلاق\nالتوقعات] <>\"\",IF(بيانات_العميل_المتوقع[إغلاق\nالتوقعات] = \"ديسمبر\",بيانات_العميل_المتوقع[التوقع\nالمرجح],0),\"\"),\"\")","v":{"v":0,"d":"ر.س.‏ 0"}}]
[null,{"$f":"IFERROR(IF(AND(بيانات_العميل_المتوقع[اسم العميل المتوقع] <> \"\", ROW(المبيعات_المتوقعة[اسم العميل المتوقع])<>الإدخال_الأخير),بيانات_العميل_المتوقع[اسم العميل المتوقع], \"\"),\"\")","v":"Adventure Works"},{"$f":"IFERROR(IF(بيانات_العميل_المتوقع[إغلاق\nالتوقعات] <>\"\",IF(بيانات_العميل_المتوقع[إغلاق\nالتوقعات]= \"يناير\",بيانات_العميل_المتوقع[التوقع\nالمرجح],0),\"\"),\"\")","v":{"v":0,"d":"ر.س.‏ 0"}},{"$f":"IFERROR(IF(بيانات_العميل_المتوقع[إغلاق\nالتوقعات] <>\"\",IF(بيانات_العميل_المتوقع[إغلاق\nالتوقعات] = \"فبراير\",بيانات_العميل_المتوقع[التوقع\nالمرجح],0),\"\"),\"\")","v":{"v":20000,"d":"ر.س.‏ 20,000"}},{"$f":"IFERROR(IF(بيانات_العميل_المتوقع[إغلاق\nالتوقعات] <>\"\",IF(بيانات_العميل_المتوقع[إغلاق\nالتوقعات] = \"مارس\",بيانات_العميل_المتوقع[التوقع\nالمرجح],0),\"\"),\"\")","v":{"v":0,"d":"ر.س.‏ 0"}},{"$f":"IFERROR(IF(بيانات_العميل_المتوقع[إغلاق\nالتوقعات] <>\"\",IF(بيانات_العميل_المتوقع[إغلاق\nالتوقعات] = \"أبريل\",بيانات_العميل_المتوقع[التوقع\nالمرجح],0),\"\"),\"\")","v":{"v":0,"d":"ر.س.‏ 0"}},{"$f":"IFERROR(IF(بيانات_العميل_المتوقع[إغلاق\nالتوقعات] <>\"\",IF(بيانات_العميل_المتوقع[إغلاق\nالتوقعات] = \"مايو\",بيانات_العميل_المتوقع[التوقع\nالمرجح],0),\"\"),\"\")","v":{"v":0,"d":"ر.س.‏ 0"}},{"$f":"IFERROR(IF(بيانات_العميل_المتوقع[إغلاق\nالتوقعات] <>\"\",IF(بيانات_العميل_المتوقع[إغلاق\nالتوقعات] = \"يونيو\",بيانات_العميل_المتوقع[التوقع\nالمرجح],0),\"\"),\"\")","v":{"v":0,"d":"ر.س.‏ 0"}},{"$f":"IFERROR(IF(بيانات_العميل_المتوقع[إغلاق\nالتوقعات] <>\"\",IF(بيانات_العميل_المتوقع[إغلاق\nالتوقعات] = \"يوليو\",بيانات_العميل_المتوقع[التوقع\nالمرجح],0),\"\"),\"\")","v":{"v":0,"d":"ر.س.‏ 0"}},{"$f":"IFERROR(IF(بيانات_العميل_المتوقع[إغلاق\nالتوقعات] <>\"\",IF(بيانات_العميل_المتوقع[إغلاق\nالتوقعات] = \"أغسطس\",بيانات_العميل_المتوقع[التوقع\nالمرجح],0),\"\"),\"\")","v":{"v":0,"d":"ر.س.‏ 0"}},{"$f":"IFERROR(IF(بيانات_العميل_المتوقع[إغلاق\nالتوقعات] <>\"\",IF(بيانات_العميل_المتوقع[إغلاق\nالتوقعات] = \"سبتمبر\",بيانات_العميل_المتوقع[التوقع\nالمرجح],0),\"\"),\"\")","v":{"v":0,"d":"ر.س.‏ 0"}},{"$f":"IFERROR(IF(بيانات_العميل_المتوقع[إغلاق\nالتوقعات] <>\"\",IF(بيانات_العميل_المتوقع[إغلاق\nالتوقعات] = \"أكتوبر\",بيانات_العميل_المتوقع[التوقع\nالمرجح],0),\"\"),\"\")","v":{"v":0,"d":"ر.س.‏ 0"}},{"$f":"IFERROR(IF(بيانات_العميل_المتوقع[إغلاق\nالتوقعات] <>\"\",IF(بيانات_العميل_المتوقع[إغلاق\nالتوقعات] = \"نوفمبر\",بيانات_العميل_المتوقع[التوقع\nالمرجح],0),\"\"),\"\")","v":{"v":0,"d":"ر.س.‏ 0"}},{"$f":"IFERROR(IF(بيانات_العميل_المتوقع[إغلاق\nالتوقعات] <>\"\",IF(بيانات_العميل_المتوقع[إغلاق\nالتوقعات] = \"ديسمبر\",بيانات_العميل_المتوقع[التوقع\nالمرجح],0),\"\"),\"\")","v":{"v":0,"d":"ر.س.‏ 0"}}]
[null,{"$f":"IFERROR(IF(AND(بيانات_العميل_المتوقع[اسم العميل المتوقع] <> \"\", ROW(المبيعات_المتوقعة[اسم العميل المتوقع])<>الإدخال_الأخير),بيانات_العميل_المتوقع[اسم العميل المتوقع], \"\"),\"\")","v":"Alpine Ski House"},{"$f":"IFERROR(IF(بيانات_العميل_المتوقع[إغلاق\nالتوقعات] <>\"\",IF(بيانات_العميل_المتوقع[إغلاق\nالتوقعات]= \"يناير\",بيانات_العميل_المتوقع[التوقع\nالمرجح],0),\"\"),\"\")","v":{"v":0,"d":"ر.س.‏ 0"}},{"$f":"IFERROR(IF(بيانات_العميل_المتوقع[إغلاق\nالتوقعات] <>\"\",IF(بيانات_العميل_المتوقع[إغلاق\nالتوقعات] = \"فبراير\",بيانات_العميل_المتوقع[التوقع\nالمرجح],0),\"\"),\"\")","v":{"v":0,"d":"ر.س.‏ 0"}},{"$f":"IFERROR(IF(بيانات_العميل_المتوقع[إغلاق\nالتوقعات] <>\"\",IF(بيانات_العميل_المتوقع[إغلاق\nالتوقعات] = \"مارس\",بيانات_العميل_المتوقع[التوقع\nالمرجح],0),\"\"),\"\")","v":{"v":20000,"d":"ر.س.‏ 20,000"}},{"$f":"IFERROR(IF(بيانات_العميل_المتوقع[إغلاق\nالتوقعات] <>\"\",IF(بيانات_العميل_المتوقع[إغلاق\nالتوقعات] = \"أبريل\",بيانات_العميل_المتوقع[التوقع\nالمرجح],0),\"\"),\"\")","v":{"v":0,"d":"ر.س.‏ 0"}},{"$f":"IFERROR(IF(بيانات_العميل_المتوقع[إغلاق\nالتوقعات] <>\"\",IF(بيانات_العميل_المتوقع[إغلاق\nالتوقعات] = \"مايو\",بيانات_العميل_المتوقع[التوقع\nالمرجح],0),\"\"),\"\")","v":{"v":0,"d":"ر.س.‏ 0"}},{"$f":"IFERROR(IF(بيانات_العميل_المتوقع[إغلاق\nالتوقعات] <>\"\",IF(بيانات_العميل_المتوقع[إغلاق\nالتوقعات] = \"يونيو\",بيانات_العميل_المتوقع[التوقع\nالمرجح],0),\"\"),\"\")","v":{"v":0,"d":"ر.س.‏ 0"}},{"$f":"IFERROR(IF(بيانات_العميل_المتوقع[إغلاق\nالتوقعات] <>\"\",IF(بيانات_العميل_المتوقع[إغلاق\nالتوقعات] = \"يوليو\",بيانات_العميل_المتوقع[التوقع\nالمرجح],0),\"\"),\"\")","v":{"v":0,"d":"ر.س.‏ 0"}},{"$f":"IFERROR(IF(بيانات_العميل_المتوقع[إغلاق\nالتوقعات] <>\"\",IF(بيانات_العميل_المتوقع[إغلاق\nالتوقعات] = \"أغسطس\",بيانات_العميل_المتوقع[التوقع\nالمرجح],0),\"\"),\"\")","v":{"v":0,"d":"ر.س.‏ 0"}},{"$f":"IFERROR(IF(بيانات_العميل_المتوقع[إغلاق\nالتوقعات] <>\"\",IF(بيانات_العميل_المتوقع[إغلاق\nالتوقعات] = \"سبتمبر\",بيانات_العميل_المتوقع[التوقع\nالمرجح],0),\"\"),\"\")","v":{"v":0,"d":"ر.س.‏ 0"}},{"$f":"IFERROR(IF(بيانات_العميل_المتوقع[إغلاق\nالتوقعات] <>\"\",IF(بيانات_العميل_المتوقع[إغلاق\nالتوقعات] = \"أكتوبر\",بيانات_العميل_المتوقع[التوقع\nالمرجح],0),\"\"),\"\")","v":{"v":0,"d":"ر.س.‏ 0"}},{"$f":"IFERROR(IF(بيانات_العميل_المتوقع[إغلاق\nالتوقعات] <>\"\",IF(بيانات_العميل_المتوقع[إغلاق\nالتوقعات] = \"نوفمبر\",بيانات_العميل_المتوقع[التوقع\nالمرجح],0),\"\"),\"\")","v":{"v":0,"d":"ر.س.‏ 0"}},{"$f":"IFERROR(IF(بيانات_العميل_المتوقع[إغلاق\nالتوقعات] <>\"\",IF(بيانات_العميل_المتوقع[إغلاق\nالتوقعات] = \"ديسمبر\",بيانات_العميل_المتوقع[التوقع\nالمرجح],0),\"\"),\"\")","v":{"v":0,"d":"ر.س.‏ 0"}}]
[null,{"$f":"IFERROR(IF(AND(بيانات_العميل_المتوقع[اسم العميل المتوقع] <> \"\", ROW(المبيعات_المتوقعة[اسم العميل المتوقع])<>الإدخال_الأخير),بيانات_العميل_المتوقع[اسم العميل المتوقع], \"\"),\"\")","v":""},{"$f":"IFERROR(IF(بيانات_العميل_المتوقع[إغلاق\nالتوقعات] <>\"\",IF(بيانات_العميل_المتوقع[إغلاق\nالتوقعات]= \"يناير\",بيانات_العميل_المتوقع[التوقع\nالمرجح],0),\"\"),\"\")","v":""},{"$f":"IFERROR(IF(بيانات_العميل_المتوقع[إغلاق\nالتوقعات] <>\"\",IF(بيانات_العميل_المتوقع[إغلاق\nالتوقعات] = \"فبراير\",بيانات_العميل_المتوقع[التوقع\nالمرجح],0),\"\"),\"\")","v":""},{"$f":"IFERROR(IF(بيانات_العميل_المتوقع[إغلاق\nالتوقعات] <>\"\",IF(بيانات_العميل_المتوقع[إغلاق\nالتوقعات] = \"مارس\",بيانات_العميل_المتوقع[التوقع\nالمرجح],0),\"\"),\"\")","v":""},{"$f":"IFERROR(IF(بيانات_العميل_المتوقع[إغلاق\nالتوقعات] <>\"\",IF(بيانات_العميل_المتوقع[إغلاق\nالتوقعات] = \"أبريل\",بيانات_العميل_المتوقع[التوقع\nالمرجح],0),\"\"),\"\")","v":""},{"$f":"IFERROR(IF(بيانات_العميل_المتوقع[إغلاق\nالتوقعات] <>\"\",IF(بيانات_العميل_المتوقع[إغلاق\nالتوقعات] = \"مايو\",بيانات_العميل_المتوقع[التوقع\nالمرجح],0),\"\"),\"\")","v":""},{"$f":"IFERROR(IF(بيانات_العميل_المتوقع[إغلاق\nالتوقعات] <>\"\",IF(بيانات_العميل_المتوقع[إغلاق\nالتوقعات] = \"يونيو\",بيانات_العميل_المتوقع[التوقع\nالمرجح],0),\"\"),\"\")","v":""},{"$f":"IFERROR(IF(بيانات_العميل_المتوقع[إغلاق\nالتوقعات] <>\"\",IF(بيانات_العميل_المتوقع[إغلاق\nالتوقعات] = \"يوليو\",بيانات_العميل_المتوقع[التوقع\nالمرجح],0),\"\"),\"\")","v":""},{"$f":"IFERROR(IF(بيانات_العميل_المتوقع[إغلاق\nالتوقعات] <>\"\",IF(بيانات_العميل_المتوقع[إغلاق\nالتوقعات] = \"أغسطس\",بيانات_العميل_المتوقع[التوقع\nالمرجح],0),\"\"),\"\")","v":""},{"$f":"IFERROR(IF(بيانات_العميل_المتوقع[إغلاق\nالتوقعات] <>\"\",IF(بيانات_العميل_المتوقع[إغلاق\nالتوقعات] = \"سبتمبر\",بيانات_العميل_المتوقع[التوقع\nالمرجح],0),\"\"),\"\")","v":""},{"$f":"IFERROR(IF(بيانات_العميل_المتوقع[إغلاق\nالتوقعات] <>\"\",IF(بيانات_العميل_المتوقع[إغلاق\nالتوقعات] = \"أكتوبر\",بيانات_العميل_المتوقع[التوقع\nالمرجح],0),\"\"),\"\")","v":""},{"$f":"IFERROR(IF(بيانات_العميل_المتوقع[إغلاق\nالتوقعات] <>\"\",IF(بيانات_العميل_المتوقع[إغلاق\nالتوقعات] = \"نوفمبر\",بيانات_العميل_المتوقع[التوقع\nالمرجح],0),\"\"),\"\")","v":""},{"$f":"IFERROR(IF(بيانات_العميل_المتوقع[إغلاق\nالتوقعات] <>\"\",IF(بيانات_العميل_المتوقع[إغلاق\nالتوقعات] = \"ديسمبر\",بيانات_العميل_المتوقع[التوقع\nالمرجح],0),\"\"),\"\")","v":""}]
[null,{"$f":"IFERROR(IF(AND(بيانات_العميل_المتوقع[اسم العميل المتوقع] <> \"\", ROW(المبيعات_المتوقعة[اسم العميل المتوقع])<>الإدخال_الأخير),بيانات_العميل_المتوقع[اسم العميل المتوقع], \"\"),\"\")","v":""},{"$f":"IFERROR(IF(بيانات_العميل_المتوقع[إغلاق\nالتوقعات] <>\"\",IF(بيانات_العميل_المتوقع[إغلاق\nالتوقعات]= \"يناير\",بيانات_العميل_المتوقع[التوقع\nالمرجح],0),\"\"),\"\")","v":""},{"$f":"IFERROR(IF(بيانات_العميل_المتوقع[إغلاق\nالتوقعات] <>\"\",IF(بيانات_العميل_المتوقع[إغلاق\nالتوقعات] = \"فبراير\",بيانات_العميل_المتوقع[التوقع\nالمرجح],0),\"\"),\"\")","v":""},{"$f":"IFERROR(IF(بيانات_العميل_المتوقع[إغلاق\nالتوقعات] <>\"\",IF(بيانات_العميل_المتوقع[إغلاق\nالتوقعات] = \"مارس\",بيانات_العميل_المتوقع[التوقع\nالمرجح],0),\"\"),\"\")","v":""},{"$f":"IFERROR(IF(بيانات_العميل_المتوقع[إغلاق\nالتوقعات] <>\"\",IF(بيانات_العميل_المتوقع[إغلاق\nالتوقعات] = \"أبريل\",بيانات_العميل_المتوقع[التوقع\nالمرجح],0),\"\"),\"\")","v":""},{"$f":"IFERROR(IF(بيانات_العميل_المتوقع[إغلاق\nالتوقعات] <>\"\",IF(بيانات_العميل_المتوقع[إغلاق\nالتوقعات] = \"مايو\",بيانات_العميل_المتوقع[التوقع\nالمرجح],0),\"\"),\"\")","v":""},{"$f":"IFERROR(IF(بيانات_العميل_المتوقع[إغلاق\nالتوقعات] <>\"\",IF(بيانات_العميل_المتوقع[إغلاق\nالتوقعات] = \"يونيو\",بيانات_العميل_المتوقع[التوقع\nالمرجح],0),\"\"),\"\")","v":""},{"$f":"IFERROR(IF(بيانات_العميل_المتوقع[إغلاق\nالتوقعات] <>\"\",IF(بيانات_العميل_المتوقع[إغلاق\nالتوقعات] = \"يوليو\",بيانات_العميل_المتوقع[التوقع\nالمرجح],0),\"\"),\"\")","v":""},{"$f":"IFERROR(IF(بيانات_العميل_المتوقع[إغلاق\nالتوقعات] <>\"\",IF(بيانات_العميل_المتوقع[إغلاق\nالتوقعات] = \"أغسطس\",بيانات_العميل_المتوقع[التوقع\nالمرجح],0),\"\"),\"\")","v":""},{"$f":"IFERROR(IF(بيانات_العميل_المتوقع[إغلاق\nالتوقعات] <>\"\",IF(بيانات_العميل_المتوقع[إغلاق\nالتوقعات] = \"سبتمبر\",بيانات_العميل_المتوقع[التوقع\nالمرجح],0),\"\"),\"\")","v":""},{"$f":"IFERROR(IF(بيانات_العميل_المتوقع[إغلاق\nالتوقعات] <>\"\",IF(بيانات_العميل_المتوقع[إغلاق\nالتوقعات] = \"أكتوبر\",بيانات_العميل_المتوقع[التوقع\nالمرجح],0),\"\"),\"\")","v":""},{"$f":"IFERROR(IF(بيانات_العميل_المتوقع[إغلاق\nالتوقعات] <>\"\",IF(بيانات_العميل_المتوقع[إغلاق\nالتوقعات] = \"نوفمبر\",بيانات_العميل_المتوقع[التوقع\nالمرجح],0),\"\"),\"\")","v":""},{"$f":"IFERROR(IF(بيانات_العميل_المتوقع[إغلاق\nالتوقعات] <>\"\",IF(بيانات_العميل_المتوقع[إغلاق\nالتوقعات] = \"ديسمبر\",بيانات_العميل_المتوقع[التوقع\nالمرجح],0),\"\"),\"\")","v":""}]
[null,{"$f":"IFERROR(IF(AND(بيانات_العميل_المتوقع[اسم العميل المتوقع] <> \"\", ROW(المبيعات_المتوقعة[اسم العميل المتوقع])<>الإدخال_الأخير),بيانات_العميل_المتوقع[اسم العميل المتوقع], \"\"),\"\")","v":""},{"$f":"IFERROR(IF(بيانات_العميل_المتوقع[إغلاق\nالتوقعات] <>\"\",IF(بيانات_العميل_المتوقع[إغلاق\nالتوقعات]= \"يناير\",بيانات_العميل_المتوقع[التوقع\nالمرجح],0),\"\"),\"\")","v":""},{"$f":"IFERROR(IF(بيانات_العميل_المتوقع[إغلاق\nالتوقعات] <>\"\",IF(بيانات_العميل_المتوقع[إغلاق\nالتوقعات] = \"فبراير\",بيانات_العميل_المتوقع[التوقع\nالمرجح],0),\"\"),\"\")","v":""},{"$f":"IFERROR(IF(بيانات_العميل_المتوقع[إغلاق\nالتوقعات] <>\"\",IF(بيانات_العميل_المتوقع[إغلاق\nالتوقعات] = \"مارس\",بيانات_العميل_المتوقع[التوقع\nالمرجح],0),\"\"),\"\")","v":""},{"$f":"IFERROR(IF(بيانات_العميل_المتوقع[إغلاق\nالتوقعات] <>\"\",IF(بيانات_العميل_المتوقع[إغلاق\nالتوقعات] = \"أبريل\",بيانات_العميل_المتوقع[التوقع\nالمرجح],0),\"\"),\"\")","v":""},{"$f":"IFERROR(IF(بيانات_العميل_المتوقع[إغلاق\nالتوقعات] <>\"\",IF(بيانات_العميل_المتوقع[إغلاق\nالتوقعات] = \"مايو\",بيانات_العميل_المتوقع[التوقع\nالمرجح],0),\"\"),\"\")","v":""},{"$f":"IFERROR(IF(بيانات_العميل_المتوقع[إغلاق\nالتوقعات] <>\"\",IF(بيانات_العميل_المتوقع[إغلاق\nالتوقعات] = \"يونيو\",بيانات_العميل_المتوقع[التوقع\nالمرجح],0),\"\"),\"\")","v":""},{"$f":"IFERROR(IF(بيانات_العميل_المتوقع[إغلاق\nالتوقعات] <>\"\",IF(بيانات_العميل_المتوقع[إغلاق\nالتوقعات] = \"يوليو\",بيانات_العميل_المتوقع[التوقع\nالمرجح],0),\"\"),\"\")","v":""},{"$f":"IFERROR(IF(بيانات_العميل_المتوقع[إغلاق\nالتوقعات] <>\"\",IF(بيانات_العميل_المتوقع[إغلاق\nالتوقعات] = \"أغسطس\",بيانات_العميل_المتوقع[التوقع\nالمرجح],0),\"\"),\"\")","v":""},{"$f":"IFERROR(IF(بيانات_العميل_المتوقع[إغلاق\nالتوقعات] <>\"\",IF(بيانات_العميل_المتوقع[إغلاق\nالتوقعات] = \"سبتمبر\",بيانات_العميل_المتوقع[التوقع\nالمرجح],0),\"\"),\"\")","v":""},{"$f":"IFERROR(IF(بيانات_العميل_المتوقع[إغلاق\nالتوقعات] <>\"\",IF(بيانات_العميل_المتوقع[إغلاق\nالتوقعات] = \"أكتوبر\",بيانات_العميل_المتوقع[التوقع\nالمرجح],0),\"\"),\"\")","v":""},{"$f":"IFERROR(IF(بيانات_العميل_المتوقع[إغلاق\nالتوقعات] <>\"\",IF(بيانات_العميل_المتوقع[إغلاق\nالتوقعات] = \"نوفمبر\",بيانات_العميل_المتوقع[التوقع\nالمرجح],0),\"\"),\"\")","v":""},{"$f":"IFERROR(IF(بيانات_العميل_المتوقع[إغلاق\nالتوقعات] <>\"\",IF(بيانات_العميل_المتوقع[إغلاق\nالتوقعات] = \"ديسمبر\",بيانات_العميل_المتوقع[التوقع\nالمرجح],0),\"\"),\"\")","v":""}]
[null,{"$f":"IFERROR(IF(AND(بيانات_العميل_المتوقع[اسم العميل المتوقع] <> \"\", ROW(المبيعات_المتوقعة[اسم العميل المتوقع])<>الإدخال_الأخير),بيانات_العميل_المتوقع[اسم العميل المتوقع], \"\"),\"\")","v":""},{"$f":"IFERROR(IF(بيانات_العميل_المتوقع[إغلاق\nالتوقعات] <>\"\",IF(بيانات_العميل_المتوقع[إغلاق\nالتوقعات]= \"يناير\",بيانات_العميل_المتوقع[التوقع\nالمرجح],0),\"\"),\"\")","v":""},{"$f":"IFERROR(IF(بيانات_العميل_المتوقع[إغلاق\nالتوقعات] <>\"\",IF(بيانات_العميل_المتوقع[إغلاق\nالتوقعات] = \"فبراير\",بيانات_العميل_المتوقع[التوقع\nالمرجح],0),\"\"),\"\")","v":""},{"$f":"IFERROR(IF(بيانات_العميل_المتوقع[إغلاق\nالتوقعات] <>\"\",IF(بيانات_العميل_المتوقع[إغلاق\nالتوقعات] = \"مارس\",بيانات_العميل_المتوقع[التوقع\nالمرجح],0),\"\"),\"\")","v":""},{"$f":"IFERROR(IF(بيانات_العميل_المتوقع[إغلاق\nالتوقعات] <>\"\",IF(بيانات_العميل_المتوقع[إغلاق\nالتوقعات] = \"أبريل\",بيانات_العميل_المتوقع[التوقع\nالمرجح],0),\"\"),\"\")","v":""},{"$f":"IFERROR(IF(بيانات_العميل_المتوقع[إغلاق\nالتوقعات] <>\"\",IF(بيانات_العميل_المتوقع[إغلاق\nالتوقعات] = \"مايو\",بيانات_العميل_المتوقع[التوقع\nالمرجح],0),\"\"),\"\")","v":""},{"$f":"IFERROR(IF(بيانات_العميل_المتوقع[إغلاق\nالتوقعات] <>\"\",IF(بيانات_العميل_المتوقع[إغلاق\nالتوقعات] = \"يونيو\",بيانات_العميل_المتوقع[التوقع\nالمرجح],0),\"\"),\"\")","v":""},{"$f":"IFERROR(IF(بيانات_العميل_المتوقع[إغلاق\nالتوقعات] <>\"\",IF(بيانات_العميل_المتوقع[إغلاق\nالتوقعات] = \"يوليو\",بيانات_العميل_المتوقع[التوقع\nالمرجح],0),\"\"),\"\")","v":""},{"$f":"IFERROR(IF(بيانات_العميل_المتوقع[إغلاق\nالتوقعات] <>\"\",IF(بيانات_العميل_المتوقع[إغلاق\nالتوقعات] = \"أغسطس\",بيانات_العميل_المتوقع[التوقع\nالمرجح],0),\"\"),\"\")","v":""},{"$f":"IFERROR(IF(بيانات_العميل_المتوقع[إغلاق\nالتوقعات] <>\"\",IF(بيانات_العميل_المتوقع[إغلاق\nالتوقعات] = \"سبتمبر\",بيانات_العميل_المتوقع[التوقع\nالمرجح],0),\"\"),\"\")","v":""},{"$f":"IFERROR(IF(بيانات_العميل_المتوقع[إغلاق\nالتوقعات] <>\"\",IF(بيانات_العميل_المتوقع[إغلاق\nالتوقعات] = \"أكتوبر\",بيانات_العميل_المتوقع[التوقع\nالمرجح],0),\"\"),\"\")","v":""},{"$f":"IFERROR(IF(بيانات_العميل_المتوقع[إغلاق\nالتوقعات] <>\"\",IF(بيانات_العميل_المتوقع[إغلاق\nالتوقعات] = \"نوفمبر\",بيانات_العميل_المتوقع[التوقع\nالمرجح],0),\"\"),\"\")","v":""},{"$f":"IFERROR(IF(بيانات_العميل_المتوقع[إغلاق\nالتوقعات] <>\"\",IF(بيانات_العميل_المتوقع[إغلاق\nالتوقعات] = \"ديسمبر\",بيانات_العميل_المتوقع[التوقع\nالمرجح],0),\"\"),\"\")","v":""}]
[null,{"$f":"IFERROR(IF(AND(بيانات_العميل_المتوقع[اسم العميل المتوقع] <> \"\", ROW(المبيعات_المتوقعة[اسم العميل المتوقع])<>الإدخال_الأخير),بيانات_العميل_المتوقع[اسم العميل المتوقع], \"\"),\"\")","v":""},{"$f":"IFERROR(IF(بيانات_العميل_المتوقع[إغلاق\nالتوقعات] <>\"\",IF(بيانات_العميل_المتوقع[إغلاق\nالتوقعات]= \"يناير\",بيانات_العميل_المتوقع[التوقع\nالمرجح],0),\"\"),\"\")","v":""},{"$f":"IFERROR(IF(بيانات_العميل_المتوقع[إغلاق\nالتوقعات] <>\"\",IF(بيانات_العميل_المتوقع[إغلاق\nالتوقعات] = \"فبراير\",بيانات_العميل_المتوقع[التوقع\nالمرجح],0),\"\"),\"\")","v":""},{"$f":"IFERROR(IF(بيانات_العميل_المتوقع[إغلاق\nالتوقعات] <>\"\",IF(بيانات_العميل_المتوقع[إغلاق\nالتوقعات] = \"مارس\",بيانات_العميل_المتوقع[التوقع\nالمرجح],0),\"\"),\"\")","v":""},{"$f":"IFERROR(IF(بيانات_العميل_المتوقع[إغلاق\nالتوقعات] <>\"\",IF(بيانات_العميل_المتوقع[إغلاق\nالتوقعات] = \"أبريل\",بيانات_العميل_المتوقع[التوقع\nالمرجح],0),\"\"),\"\")","v":""},{"$f":"IFERROR(IF(بيانات_العميل_المتوقع[إغلاق\nالتوقعات] <>\"\",IF(بيانات_العميل_المتوقع[إغلاق\nالتوقعات] = \"مايو\",بيانات_العميل_المتوقع[التوقع\nالمرجح],0),\"\"),\"\")","v":""},{"$f":"IFERROR(IF(بيانات_العميل_المتوقع[إغلاق\nالتوقعات] <>\"\",IF(بيانات_العميل_المتوقع[إغلاق\nالتوقعات] = \"يونيو\",بيانات_العميل_المتوقع[التوقع\nالمرجح],0),\"\"),\"\")","v":""},{"$f":"IFERROR(IF(بيانات_العميل_المتوقع[إغلاق\nالتوقعات] <>\"\",IF(بيانات_العميل_المتوقع[إغلاق\nالتوقعات] = \"يوليو\",بيانات_العميل_المتوقع[التوقع\nالمرجح],0),\"\"),\"\")","v":""},{"$f":"IFERROR(IF(بيانات_العميل_المتوقع[إغلاق\nالتوقعات] <>\"\",IF(بيانات_العميل_المتوقع[إغلاق\nالتوقعات] = \"أغسطس\",بيانات_العميل_المتوقع[التوقع\nالمرجح],0),\"\"),\"\")","v":""},{"$f":"IFERROR(IF(بيانات_العميل_المتوقع[إغلاق\nالتوقعات] <>\"\",IF(بيانات_العميل_المتوقع[إغلاق\nالتوقعات] = \"سبتمبر\",بيانات_العميل_المتوقع[التوقع\nالمرجح],0),\"\"),\"\")","v":""},{"$f":"IFERROR(IF(بيانات_العميل_المتوقع[إغلاق\nالتوقعات] <>\"\",IF(بيانات_العميل_المتوقع[إغلاق\nالتوقعات] = \"أكتوبر\",بيانات_العميل_المتوقع[التوقع\nالمرجح],0),\"\"),\"\")","v":""},{"$f":"IFERROR(IF(بيانات_العميل_المتوقع[إغلاق\nالتوقعات] <>\"\",IF(بيانات_العميل_المتوقع[إغلاق\nالتوقعات] = \"نوفمبر\",بيانات_العميل_المتوقع[التوقع\nالمرجح],0),\"\"),\"\")","v":""},{"$f":"IFERROR(IF(بيانات_العميل_المتوقع[إغلاق\nالتوقعات] <>\"\",IF(بيانات_العميل_المتوقع[إغلاق\nالتوقعات] = \"ديسمبر\",بيانات_العميل_المتوقع[التوقع\nالمرجح],0),\"\"),\"\")","v":""}]
[null,{"$f":"IFERROR(IF(AND(بيانات_العميل_المتوقع[اسم العميل المتوقع] <> \"\", ROW(المبيعات_المتوقعة[اسم العميل المتوقع])<>الإدخال_الأخير),بيانات_العميل_المتوقع[اسم العميل المتوقع], \"\"),\"\")","v":""},{"$f":"IFERROR(IF(بيانات_العميل_المتوقع[إغلاق\nالتوقعات] <>\"\",IF(بيانات_العميل_المتوقع[إغلاق\nالتوقعات]= \"يناير\",بيانات_العميل_المتوقع[التوقع\nالمرجح],0),\"\"),\"\")","v":""},{"$f":"IFERROR(IF(بيانات_العميل_المتوقع[إغلاق\nالتوقعات] <>\"\",IF(بيانات_العميل_المتوقع[إغلاق\nالتوقعات] = \"فبراير\",بيانات_العميل_المتوقع[التوقع\nالمرجح],0),\"\"),\"\")","v":""},{"$f":"IFERROR(IF(بيانات_العميل_المتوقع[إغلاق\nالتوقعات] <>\"\",IF(بيانات_العميل_المتوقع[إغلاق\nالتوقعات] = \"مارس\",بيانات_العميل_المتوقع[التوقع\nالمرجح],0),\"\"),\"\")","v":""},{"$f":"IFERROR(IF(بيانات_العميل_المتوقع[إغلاق\nالتوقعات] <>\"\",IF(بيانات_العميل_المتوقع[إغلاق\nالتوقعات] = \"أبريل\",بيانات_العميل_المتوقع[التوقع\nالمرجح],0),\"\"),\"\")","v":""},{"$f":"IFERROR(IF(بيانات_العميل_المتوقع[إغلاق\nالتوقعات] <>\"\",IF(بيانات_العميل_المتوقع[إغلاق\nالتوقعات] = \"مايو\",بيانات_العميل_المتوقع[التوقع\nالمرجح],0),\"\"),\"\")","v":""},{"$f":"IFERROR(IF(بيانات_العميل_المتوقع[إغلاق\nالتوقعات] <>\"\",IF(بيانات_العميل_المتوقع[إغلاق\nالتوقعات] = \"يونيو\",بيانات_العميل_المتوقع[التوقع\nالمرجح],0),\"\"),\"\")","v":""},{"$f":"IFERROR(IF(بيانات_العميل_المتوقع[إغلاق\nالتوقعات] <>\"\",IF(بيانات_العميل_المتوقع[إغلاق\nالتوقعات] = \"يوليو\",بيانات_العميل_المتوقع[التوقع\nالمرجح],0),\"\"),\"\")","v":""},{"$f":"IFERROR(IF(بيانات_العميل_المتوقع[إغلاق\nالتوقعات] <>\"\",IF(بيانات_العميل_المتوقع[إغلاق\nالتوقعات] = \"أغسطس\",بيانات_العميل_المتوقع[التوقع\nالمرجح],0),\"\"),\"\")","v":""},{"$f":"IFERROR(IF(بيانات_العميل_المتوقع[إغلاق\nالتوقعات] <>\"\",IF(بيانات_العميل_المتوقع[إغلاق\nالتوقعات] = \"سبتمبر\",بيانات_العميل_المتوقع[التوقع\nالمرجح],0),\"\"),\"\")","v":""},{"$f":"IFERROR(IF(بيانات_العميل_المتوقع[إغلاق\nالتوقعات] <>\"\",IF(بيانات_العميل_المتوقع[إغلاق\nالتوقعات] = \"أكتوبر\",بيانات_العميل_المتوقع[التوقع\nالمرجح],0),\"\"),\"\")","v":""},{"$f":"IFERROR(IF(بيانات_العميل_المتوقع[إغلاق\nالتوقعات] <>\"\",IF(بيانات_العميل_المتوقع[إغلاق\nالتوقعات] = \"نوفمبر\",بيانات_العميل_المتوقع[التوقع\nالمرجح],0),\"\"),\"\")","v":""},{"$f":"IFERROR(IF(بيانات_العميل_المتوقع[إغلاق\nالتوقعات] <>\"\",IF(بيانات_العميل_المتوقع[إغلاق\nالتوقعات] = \"ديسمبر\",بيانات_العميل_المتوقع[التوقع\nالمرجح],0),\"\"),\"\")","v":""}]
[null,{"$f":"IFERROR(IF(AND(بيانات_العميل_المتوقع[اسم العميل المتوقع] <> \"\", ROW(المبيعات_المتوقعة[اسم العميل المتوقع])<>الإدخال_الأخير),بيانات_العميل_المتوقع[اسم العميل المتوقع], \"\"),\"\")","v":""},{"$f":"IFERROR(IF(بيانات_العميل_المتوقع[إغلاق\nالتوقعات] <>\"\",IF(بيانات_العميل_المتوقع[إغلاق\nالتوقعات]= \"يناير\",بيانات_العميل_المتوقع[التوقع\nالمرجح],0),\"\"),\"\")","v":""},{"$f":"IFERROR(IF(بيانات_العميل_المتوقع[إغلاق\nالتوقعات] <>\"\",IF(بيانات_العميل_المتوقع[إغلاق\nالتوقعات] = \"فبراير\",بيانات_العميل_المتوقع[التوقع\nالمرجح],0),\"\"),\"\")","v":""},{"$f":"IFERROR(IF(بيانات_العميل_المتوقع[إغلاق\nالتوقعات] <>\"\",IF(بيانات_العميل_المتوقع[إغلاق\nالتوقعات] = \"مارس\",بيانات_العميل_المتوقع[التوقع\nالمرجح],0),\"\"),\"\")","v":""},{"$f":"IFERROR(IF(بيانات_العميل_المتوقع[إغلاق\nالتوقعات] <>\"\",IF(بيانات_العميل_المتوقع[إغلاق\nالتوقعات] = \"أبريل\",بيانات_العميل_المتوقع[التوقع\nالمرجح],0),\"\"),\"\")","v":""},{"$f":"IFERROR(IF(بيانات_العميل_المتوقع[إغلاق\nالتوقعات] <>\"\",IF(بيانات_العميل_المتوقع[إغلاق\nالتوقعات] = \"مايو\",بيانات_العميل_المتوقع[التوقع\nالمرجح],0),\"\"),\"\")","v":""},{"$f":"IFERROR(IF(بيانات_العميل_المتوقع[إغلاق\nالتوقعات] <>\"\",IF(بيانات_العميل_المتوقع[إغلاق\nالتوقعات] = \"يونيو\",بيانات_العميل_المتوقع[التوقع\nالمرجح],0),\"\"),\"\")","v":""},{"$f":"IFERROR(IF(بيانات_العميل_المتوقع[إغلاق\nالتوقعات] <>\"\",IF(بيانات_العميل_المتوقع[إغلاق\nالتوقعات] = \"يوليو\",بيانات_العميل_المتوقع[التوقع\nالمرجح],0),\"\"),\"\")","v":""},{"$f":"IFERROR(IF(بيانات_العميل_المتوقع[إغلاق\nالتوقعات] <>\"\",IF(بيانات_العميل_المتوقع[إغلاق\nالتوقعات] = \"أغسطس\",بيانات_العميل_المتوقع[التوقع\nالمرجح],0),\"\"),\"\")","v":""},{"$f":"IFERROR(IF(بيانات_العميل_المتوقع[إغلاق\nالتوقعات] <>\"\",IF(بيانات_العميل_المتوقع[إغلاق\nالتوقعات] = \"سبتمبر\",بيانات_العميل_المتوقع[التوقع\nالمرجح],0),\"\"),\"\")","v":""},{"$f":"IFERROR(IF(بيانات_العميل_المتوقع[إغلاق\nالتوقعات] <>\"\",IF(بيانات_العميل_المتوقع[إغلاق\nالتوقعات] = \"أكتوبر\",بيانات_العميل_المتوقع[التوقع\nالمرجح],0),\"\"),\"\")","v":""},{"$f":"IFERROR(IF(بيانات_العميل_المتوقع[إغلاق\nالتوقعات] <>\"\",IF(بيانات_العميل_المتوقع[إغلاق\nالتوقعات] = \"نوفمبر\",بيانات_العميل_المتوقع[التوقع\nالمرجح],0),\"\"),\"\")","v":""},{"$f":"IFERROR(IF(بيانات_العميل_المتوقع[إغلاق\nالتوقعات] <>\"\",IF(بيانات_العميل_المتوقع[إغلاق\nالتوقعات] = \"ديسمبر\",بيانات_العميل_المتوقع[التوقع\nالمرجح],0),\"\"),\"\")","v":""}]
[null,{"$f":"IFERROR(IF(AND(بيانات_العميل_المتوقع[اسم العميل المتوقع] <> \"\", ROW(المبيعات_المتوقعة[اسم العميل المتوقع])<>الإدخال_الأخير),بيانات_العميل_المتوقع[اسم العميل المتوقع], \"\"),\"\")","v":""},{"$f":"IFERROR(IF(بيانات_العميل_المتوقع[إغلاق\nالتوقعات] <>\"\",IF(بيانات_العميل_المتوقع[إغلاق\nالتوقعات]= \"يناير\",بيانات_العميل_المتوقع[التوقع\nالمرجح],0),\"\"),\"\")","v":""},{"$f":"IFERROR(IF(بيانات_العميل_المتوقع[إغلاق\nالتوقعات] <>\"\",IF(بيانات_العميل_المتوقع[إغلاق\nالتوقعات] = \"فبراير\",بيانات_العميل_المتوقع[التوقع\nالمرجح],0),\"\"),\"\")","v":""},{"$f":"IFERROR(IF(بيانات_العميل_المتوقع[إغلاق\nالتوقعات] <>\"\",IF(بيانات_العميل_المتوقع[إغلاق\nالتوقعات] = \"مارس\",بيانات_العميل_المتوقع[التوقع\nالمرجح],0),\"\"),\"\")","v":""},{"$f":"IFERROR(IF(بيانات_العميل_المتوقع[إغلاق\nالتوقعات] <>\"\",IF(بيانات_العميل_المتوقع[إغلاق\nالتوقعات] = \"أبريل\",بيانات_العميل_المتوقع[التوقع\nالمرجح],0),\"\"),\"\")","v":""},{"$f":"IFERROR(IF(بيانات_العميل_المتوقع[إغلاق\nالتوقعات] <>\"\",IF(بيانات_العميل_المتوقع[إغلاق\nالتوقعات] = \"مايو\",بيانات_العميل_المتوقع[التوقع\nالمرجح],0),\"\"),\"\")","v":""},{"$f":"IFERROR(IF(بيانات_العميل_المتوقع[إغلاق\nالتوقعات] <>\"\",IF(بيانات_العميل_المتوقع[إغلاق\nالتوقعات] = \"يونيو\",بيانات_العميل_المتوقع[التوقع\nالمرجح],0),\"\"),\"\")","v":""},{"$f":"IFERROR(IF(بيانات_العميل_المتوقع[إغلاق\nالتوقعات] <>\"\",IF(بيانات_العميل_المتوقع[إغلاق\nالتوقعات] = \"يوليو\",بيانات_العميل_المتوقع[التوقع\nالمرجح],0),\"\"),\"\")","v":""},{"$f":"IFERROR(IF(بيانات_العميل_المتوقع[إغلاق\nالتوقعات] <>\"\",IF(بيانات_العميل_المتوقع[إغلاق\nالتوقعات] = \"أغسطس\",بيانات_العميل_المتوقع[التوقع\nالمرجح],0),\"\"),\"\")","v":""},{"$f":"IFERROR(IF(بيانات_العميل_المتوقع[إغلاق\nالتوقعات] <>\"\",IF(بيانات_العميل_المتوقع[إغلاق\nالتوقعات] = \"سبتمبر\",بيانات_العميل_المتوقع[التوقع\nالمرجح],0),\"\"),\"\")","v":""},{"$f":"IFERROR(IF(بيانات_العميل_المتوقع[إغلاق\nالتوقعات] <>\"\",IF(بيانات_العميل_المتوقع[إغلاق\nالتوقعات] = \"أكتوبر\",بيانات_العميل_المتوقع[التوقع\nالمرجح],0),\"\"),\"\")","v":""},{"$f":"IFERROR(IF(بيانات_العميل_المتوقع[إغلاق\nالتوقعات] <>\"\",IF(بيانات_العميل_المتوقع[إغلاق\nالتوقعات] = \"نوفمبر\",بيانات_العميل_المتوقع[التوقع\nالمرجح],0),\"\"),\"\")","v":""},{"$f":"IFERROR(IF(بيانات_العميل_المتوقع[إغلاق\nالتوقعات] <>\"\",IF(بيانات_العميل_المتوقع[إغلاق\nالتوقعات] = \"ديسمبر\",بيانات_العميل_المتوقع[التوقع\nالمرجح],0),\"\"),\"\")","v":""}]
[null,{"$f":"IFERROR(IF(AND(بيانات_العميل_المتوقع[اسم العميل المتوقع] <> \"\", ROW(المبيعات_المتوقعة[اسم العميل المتوقع])<>الإدخال_الأخير),بيانات_العميل_المتوقع[اسم العميل المتوقع], \"\"),\"\")","v":""},{"$f":"IFERROR(IF(بيانات_العميل_المتوقع[إغلاق\nالتوقعات] <>\"\",IF(بيانات_العميل_المتوقع[إغلاق\nالتوقعات]= \"يناير\",بيانات_العميل_المتوقع[التوقع\nالمرجح],0),\"\"),\"\")","v":""},{"$f":"IFERROR(IF(بيانات_العميل_المتوقع[إغلاق\nالتوقعات] <>\"\",IF(بيانات_العميل_المتوقع[إغلاق\nالتوقعات] = \"فبراير\",بيانات_العميل_المتوقع[التوقع\nالمرجح],0),\"\"),\"\")","v":""},{"$f":"IFERROR(IF(بيانات_العميل_المتوقع[إغلاق\nالتوقعات] <>\"\",IF(بيانات_العميل_المتوقع[إغلاق\nالتوقعات] = \"مارس\",بيانات_العميل_المتوقع[التوقع\nالمرجح],0),\"\"),\"\")","v":""},{"$f":"IFERROR(IF(بيانات_العميل_المتوقع[إغلاق\nالتوقعات] <>\"\",IF(بيانات_العميل_المتوقع[إغلاق\nالتوقعات] = \"أبريل\",بيانات_العميل_المتوقع[التوقع\nالمرجح],0),\"\"),\"\")","v":""},{"$f":"IFERROR(IF(بيانات_العميل_المتوقع[إغلاق\nالتوقعات] <>\"\",IF(بيانات_العميل_المتوقع[إغلاق\nالتوقعات] = \"مايو\",بيانات_العميل_المتوقع[التوقع\nالمرجح],0),\"\"),\"\")","v":""},{"$f":"IFERROR(IF(بيانات_العميل_المتوقع[إغلاق\nالتوقعات] <>\"\",IF(بيانات_العميل_المتوقع[إغلاق\nالتوقعات] = \"يونيو\",بيانات_العميل_المتوقع[التوقع\nالمرجح],0),\"\"),\"\")","v":""},{"$f":"IFERROR(IF(بيانات_العميل_المتوقع[إغلاق\nالتوقعات] <>\"\",IF(بيانات_العميل_المتوقع[إغلاق\nالتوقعات] = \"يوليو\",بيانات_العميل_المتوقع[التوقع\nالمرجح],0),\"\"),\"\")","v":""},{"$f":"IFERROR(IF(بيانات_العميل_المتوقع[إغلاق\nالتوقعات] <>\"\",IF(بيانات_العميل_المتوقع[إغلاق\nالتوقعات] = \"أغسطس\",بيانات_العميل_المتوقع[التوقع\nالمرجح],0),\"\"),\"\")","v":""},{"$f":"IFERROR(IF(بيانات_العميل_المتوقع[إغلاق\nالتوقعات] <>\"\",IF(بيانات_العميل_المتوقع[إغلاق\nالتوقعات] = \"سبتمبر\",بيانات_العميل_المتوقع[التوقع\nالمرجح],0),\"\"),\"\")","v":""},{"$f":"IFERROR(IF(بيانات_العميل_المتوقع[إغلاق\nالتوقعات] <>\"\",IF(بيانات_العميل_المتوقع[إغلاق\nالتوقعات] = \"أكتوبر\",بيانات_العميل_المتوقع[التوقع\nالمرجح],0),\"\"),\"\")","v":""},{"$f":"IFERROR(IF(بيانات_العميل_المتوقع[إغلاق\nالتوقعات] <>\"\",IF(بيانات_العميل_المتوقع[إغلاق\nالتوقعات] = \"نوفمبر\",بيانات_العميل_المتوقع[التوقع\nالمرجح],0),\"\"),\"\")","v":""},{"$f":"IFERROR(IF(بيانات_العميل_المتوقع[إغلاق\nالتوقعات] <>\"\",IF(بيانات_العميل_المتوقع[إغلاق\nالتوقعات] = \"ديسمبر\",بيانات_العميل_المتوقع[التوقع\nالمرجح],0),\"\"),\"\")","v":""}]
[null,{"$f":"IFERROR(IF(AND(بيانات_العميل_المتوقع[اسم العميل المتوقع] <> \"\", ROW(المبيعات_المتوقعة[اسم العميل المتوقع])<>الإدخال_الأخير),بيانات_العميل_المتوقع[اسم العميل المتوقع], \"\"),\"\")","v":""},{"$f":"IFERROR(IF(بيانات_العميل_المتوقع[إغلاق\nالتوقعات] <>\"\",IF(بيانات_العميل_المتوقع[إغلاق\nالتوقعات]= \"يناير\",بيانات_العميل_المتوقع[التوقع\nالمرجح],0),\"\"),\"\")","v":""},{"$f":"IFERROR(IF(بيانات_العميل_المتوقع[إغلاق\nالتوقعات] <>\"\",IF(بيانات_العميل_المتوقع[إغلاق\nالتوقعات] = \"فبراير\",بيانات_العميل_المتوقع[التوقع\nالمرجح],0),\"\"),\"\")","v":""},{"$f":"IFERROR(IF(بيانات_العميل_المتوقع[إغلاق\nالتوقعات] <>\"\",IF(بيانات_العميل_المتوقع[إغلاق\nالتوقعات] = \"مارس\",بيانات_العميل_المتوقع[التوقع\nالمرجح],0),\"\"),\"\")","v":""},{"$f":"IFERROR(IF(بيانات_العميل_المتوقع[إغلاق\nالتوقعات] <>\"\",IF(بيانات_العميل_المتوقع[إغلاق\nالتوقعات] = \"أبريل\",بيانات_العميل_المتوقع[التوقع\nالمرجح],0),\"\"),\"\")","v":""},{"$f":"IFERROR(IF(بيانات_العميل_المتوقع[إغلاق\nالتوقعات] <>\"\",IF(بيانات_العميل_المتوقع[إغلاق\nالتوقعات] = \"مايو\",بيانات_العميل_المتوقع[التوقع\nالمرجح],0),\"\"),\"\")","v":""},{"$f":"IFERROR(IF(بيانات_العميل_المتوقع[إغلاق\nالتوقعات] <>\"\",IF(بيانات_العميل_المتوقع[إغلاق\nالتوقعات] = \"يونيو\",بيانات_العميل_المتوقع[التوقع\nالمرجح],0),\"\"),\"\")","v":""},{"$f":"IFERROR(IF(بيانات_العميل_المتوقع[إغلاق\nالتوقعات] <>\"\",IF(بيانات_العميل_المتوقع[إغلاق\nالتوقعات] = \"يوليو\",بيانات_العميل_المتوقع[التوقع\nالمرجح],0),\"\"),\"\")","v":""},{"$f":"IFERROR(IF(بيانات_العميل_المتوقع[إغلاق\nالتوقعات] <>\"\",IF(بيانات_العميل_المتوقع[إغلاق\nالتوقعات] = \"أغسطس\",بيانات_العميل_المتوقع[التوقع\nالمرجح],0),\"\"),\"\")","v":""},{"$f":"IFERROR(IF(بيانات_العميل_المتوقع[إغلاق\nالتوقعات] <>\"\",IF(بيانات_العميل_المتوقع[إغلاق\nالتوقعات] = \"سبتمبر\",بيانات_العميل_المتوقع[التوقع\nالمرجح],0),\"\"),\"\")","v":""},{"$f":"IFERROR(IF(بيانات_العميل_المتوقع[إغلاق\nالتوقعات] <>\"\",IF(بيانات_العميل_المتوقع[إغلاق\nالتوقعات] = \"أكتوبر\",بيانات_العميل_المتوقع[التوقع\nالمرجح],0),\"\"),\"\")","v":""},{"$f":"IFERROR(IF(بيانات_العميل_المتوقع[إغلاق\nالتوقعات] <>\"\",IF(بيانات_العميل_المتوقع[إغلاق\nالتوقعات] = \"نوفمبر\",بيانات_العميل_المتوقع[التوقع\nالمرجح],0),\"\"),\"\")","v":""},{"$f":"IFERROR(IF(بيانات_العميل_المتوقع[إغلاق\nالتوقعات] <>\"\",IF(بيانات_العميل_المتوقع[إغلاق\nالتوقعات] = \"ديسمبر\",بيانات_العميل_المتوقع[التوقع\nالمرجح],0),\"\"),\"\")","v":""}]
[null,{"$f":"IFERROR(IF(AND(بيانات_العميل_المتوقع[اسم العميل المتوقع] <> \"\", ROW(المبيعات_المتوقعة[اسم العميل المتوقع])<>الإدخال_الأخير),بيانات_العميل_المتوقع[اسم العميل المتوقع], \"\"),\"\")","v":""},{"$f":"IFERROR(IF(بيانات_العميل_المتوقع[إغلاق\nالتوقعات] <>\"\",IF(بيانات_العميل_المتوقع[إغلاق\nالتوقعات]= \"يناير\",بيانات_العميل_المتوقع[التوقع\nالمرجح],0),\"\"),\"\")","v":""},{"$f":"IFERROR(IF(بيانات_العميل_المتوقع[إغلاق\nالتوقعات] <>\"\",IF(بيانات_العميل_المتوقع[إغلاق\nالتوقعات] = \"فبراير\",بيانات_العميل_المتوقع[التوقع\nالمرجح],0),\"\"),\"\")","v":""},{"$f":"IFERROR(IF(بيانات_العميل_المتوقع[إغلاق\nالتوقعات] <>\"\",IF(بيانات_العميل_المتوقع[إغلاق\nالتوقعات] = \"مارس\",بيانات_العميل_المتوقع[التوقع\nالمرجح],0),\"\"),\"\")","v":""},{"$f":"IFERROR(IF(بيانات_العميل_المتوقع[إغلاق\nالتوقعات] <>\"\",IF(بيانات_العميل_المتوقع[إغلاق\nالتوقعات] = \"أبريل\",بيانات_العميل_المتوقع[التوقع\nالمرجح],0),\"\"),\"\")","v":""},{"$f":"IFERROR(IF(بيانات_العميل_المتوقع[إغلاق\nالتوقعات] <>\"\",IF(بيانات_العميل_المتوقع[إغلاق\nالتوقعات] = \"مايو\",بيانات_العميل_المتوقع[التوقع\nالمرجح],0),\"\"),\"\")","v":""},{"$f":"IFERROR(IF(بيانات_العميل_المتوقع[إغلاق\nالتوقعات] <>\"\",IF(بيانات_العميل_المتوقع[إغلاق\nالتوقعات] = \"يونيو\",بيانات_العميل_المتوقع[التوقع\nالمرجح],0),\"\"),\"\")","v":""},{"$f":"IFERROR(IF(بيانات_العميل_المتوقع[إغلاق\nالتوقعات] <>\"\",IF(بيانات_العميل_المتوقع[إغلاق\nالتوقعات] = \"يوليو\",بيانات_العميل_المتوقع[التوقع\nالمرجح],0),\"\"),\"\")","v":""},{"$f":"IFERROR(IF(بيانات_العميل_المتوقع[إغلاق\nالتوقعات] <>\"\",IF(بيانات_العميل_المتوقع[إغلاق\nالتوقعات] = \"أغسطس\",بيانات_العميل_المتوقع[التوقع\nالمرجح],0),\"\"),\"\")","v":""},{"$f":"IFERROR(IF(بيانات_العميل_المتوقع[إغلاق\nالتوقعات] <>\"\",IF(بيانات_العميل_المتوقع[إغلاق\nالتوقعات] = \"سبتمبر\",بيانات_العميل_المتوقع[التوقع\nالمرجح],0),\"\"),\"\")","v":""},{"$f":"IFERROR(IF(بيانات_العميل_المتوقع[إغلاق\nالتوقعات] <>\"\",IF(بيانات_العميل_المتوقع[إغلاق\nالتوقعات] = \"أكتوبر\",بيانات_العميل_المتوقع[التوقع\nالمرجح],0),\"\"),\"\")","v":""},{"$f":"IFERROR(IF(بيانات_العميل_المتوقع[إغلاق\nالتوقعات] <>\"\",IF(بيانات_العميل_المتوقع[إغلاق\nالتوقعات] = \"نوفمبر\",بيانات_العميل_المتوقع[التوقع\nالمرجح],0),\"\"),\"\")","v":""},{"$f":"IFERROR(IF(بيانات_العميل_المتوقع[إغلاق\nالتوقعات] <>\"\",IF(بيانات_العميل_المتوقع[إغلاق\nالتوقعات] = \"ديسمبر\",بيانات_العميل_المتوقع[التوقع\nالمرجح],0),\"\"),\"\")","v":""}]
[null,"الإجمالي",{"$f":"SUBTOTAL(109,المبيعات_المتوقعة[يناير \nالمرجح])","v":{"v":270000,"d":"ر.س.‏ 270,000"}},{"$f":"SUBTOTAL(109,المبيعات_المتوقعة[فبراير \nالمرجح])","v":{"v":20000,"d":"ر.س.‏ 20,000"}},{"$f":"SUBTOTAL(109,المبيعات_المتوقعة[مارس \nالمرجح])","v":{"v":20000,"d":"ر.س.‏ 20,000"}},{"$f":"SUBTOTAL(109,المبيعات_المتوقعة[أبريل \nالمرجح])","v":{"v":0,"d":"ر.س.‏ 0"}},{"$f":"SUBTOTAL(109,المبيعات_المتوقعة[مايو \nالمرجح])","v":{"v":0,"d":"ر.س.‏ 0"}},{"$f":"SUBTOTAL(109,المبيعات_المتوقعة[يونيو \nالمرجح])","v":{"v":0,"d":"ر.س.‏ 0"}},{"$f":"SUBTOTAL(109,المبيعات_المتوقعة[يوليو\nالمرجح])","v":{"v":0,"d":"ر.س.‏ 0"}},{"$f":"SUBTOTAL(109,المبيعات_المتوقعة[أغسطس \nالمرجح])","v":{"v":0,"d":"ر.س.‏ 0"}},{"$f":"SUBTOTAL(109,المبيعات_المتوقعة[سبتمبر \nالمرجح])","v":{"v":0,"d":"ر.س.‏ 0"}},{"$f":"SUBTOTAL(109,المبيعات_المتوقعة[أكتوبر \nالمرجح])","v":{"v":0,"d":"ر.س.‏ 0"}},{"$f":"SUBTOTAL(109,المبيعات_المتوقعة[نوفمبر \nالمرجح])","v":{"v":0,"d":"ر.س.‏ 0"}},{"$f":"SUBTOTAL(109,المبيعات_المتوقعة[ديسمبر \nالمرجح])","v":{"v":0,"d":"ر.س.‏ 0"}}]
[null,"المجموع التراكمي",{"$f":"C20","v":{"v":270000,"d":"ر.س.‏ 270,000"}},{"$f":"C21+D20","v":{"v":290000,"d":"ر.س.‏ 290,000"}},{"$f":"D21+E20","v":{"v":310000,"d":"ر.س.‏ 310,000"}},{"$f":"E21+F20","v":{"v":310000,"d":"ر.س.‏ 310,000"}},{"$f":"F21+G20","v":{"v":310000,"d":"ر.س.‏ 310,000"}},{"$f":"G21+H20","v":{"v":310000,"d":"ر.س.‏ 310,000"}},{"$f":"H21+I20","v":{"v":310000,"d":"ر.س.‏ 310,000"}},{"$f":"I21+J20","v":{"v":310000,"d":"ر.س.‏ 310,000"}},{"$f":"J21+K20","v":{"v":310000,"d":"ر.س.‏ 310,000"}},{"$f":"K21+L20","v":{"v":310000,"d":"ر.س.‏ 310,000"}},{"$f":"L21+M20","v":{"v":310000,"d":"ر.س.‏ 310,000"}},{"$f":"M21+N20","v":{"v":310000,"d":"ر.س.‏ 310,000"}}]

{"sheet":"التوقعات المرجحة الشهرية","index":2,"n_rows":3,"n_cols":2,"rows_kept":3}
[null,{"$f":"Company_Name","v":"اسم الشركة"}]
[null,"التوقعات المرجحة الشهرية"]
[null," "]